bitfinex-derivatives/quotes_SOLF0:USTF0_20241107
["timestamp","ask_amount","ask_price","bid_price","bid_amount"]
[1731016835621,2.5418,196.49,196.47,7.79112163]
[1731016837125,2.5418,196.49,196.45,1.2804]
[1731016837423,2.5418,196.49,196.45,7.79112163]
[1731016838218,7.79112163,196.51,196.41,43.42049516]
[1731016838425,7.79112163,196.47,196.31,1.93744934]
[1731016838620,7.79112163,196.47,196.42,7.79112163]
[1731016838824,7.79112163,196.46,196.42,7.79112163]
[1731016839214,2.5422,196.45,196.42,7.79112163]
[1731016840227,2.5422,196.45,196.36,43.43074059]
[1731016840529,2.5422,196.45,196.41,7.79112163]
[1731016842117,2.5422,196.45,196.39,2.543]
[1731016842331,2.5422,196.45,196.4,7.79112163]
[1731016844718,2.5422,196.45,196.41,7.79112163]
[1731016845227,1.2338,196.53,196.39,2.5429]
[1731016845228,2.82,196.5,196.43,7.79112163]
[1731016845432,7.79112163,196.48,196.43,7.79112163]
[1731016845729,2.542,196.47,196.43,7.79112163]
[1731016846624,2.5418,196.49,196.45,7.79112163]
[1731016846928,7.79112163,196.5,196.46,7.79112163]
[1731016847227,2.82,196.5,196.48,7.79112163]
[1731016847727,13.15252163,196.52,196.48,7.79112163]
[1731016848724,10.61112163,196.52,196.48,7.79112163]
[1731016848931,2.82,196.52,196.48,7.79112163]
[1731016849930,2.82,196.52,196.49,7.79112163]
[1731016850523,2.82,196.54,196.49,7.79112163]
[1731016852221,7.79112163,196.55,196.49,7.79112163]
[1731016852424,5.3608,196.56,196.43,1.2621]
[1731016852425,2.82,196.56,196.43,1.2621]
[1731016852731,13.15192163,196.56,196.51,7.79112163]
[1731016852923,2.5408,196.56,196.51,7.79112163]
[1731016853126,10.33192163,196.56,196.51,7.79112163]
[1731016853325,10.33192163,196.56,196.45,2.82]
[1731016853524,52.44876116,196.57,196.43,1.2621]
[1731016853525,7.79112163,196.55,196.43,1.2621]
[1731016853727,2.5413,196.52,196.48,7.79112163]
[1731016854432,52.44876116,196.57,196.5,7.79112163]
[1731016854633,2.541,196.55,196.5,7.79112163]
[1731016856324,2.4861,196.62,196.51,7.79112163]
[1731016856623,10.33192163,196.57,196.51,7.79112163]
[1731016857026,7.79112163,196.6,196.55,7.79112163]
[1731016858328,10.33142163,196.6,196.55,7.79112163]
[1731016858926,2.5401,196.61,196.57,7.79112163]
[1731016859131,11.88242163,196.62,196.57,7.79112163]
[1731016859433,4.0913,196.62,196.54,12.20188687]
[1731016859631,6.6314,196.62,196.55,2.5408]
[1731016859828,3.8114,196.62,196.55,2.5408]
[1731016860228,2.5402,196.61,196.55,2.5408]
[1731016861531,2.5402,196.61,196.56,2.5408]
[1731016862841,2.5402,196.61,196.54,12.20188687]
[1731016863931,2.5402,196.61,196.57,12.20188687]
[1731016864132,2.5402,196.61,196.54,2.541]
[1731016864331,2.82,196.64,196.56,12.20188687]
[1731016864332,2.5405,196.59,196.56,12.20188687]
[1731016864532,2.82,196.64,196.56,12.20188687]
[1731016865341,2.82,196.64,196.52,2.49979198]
[1731016865643,2.82,196.64,196.55,12.20188687]
[1731016867647,2.54,196.63,196.57,2.5406]
[1731016867937,2.54,196.63,196.57,14.74248687]
[1731016868139,2.54,196.63,196.57,12.20188687]
[1731016868838,2.54,196.62,196.57,12.20188687]
[1731016871147,2.54,196.62,196.57,14.74248687]
[1731016873041,2.82,196.64,196.57,12.20188687]
[1731016873544,2.82,196.64,196.52,2.50182558]
[1731016873743,2.5402,196.61,196.55,14.74278687]
[1731016873944,12.20188687,196.63,196.51,1.2719]
[1731016874144,1.1899,196.6,196.51,13.47378687]
[1731016874444,2.5409,196.56,196.51,13.47378687]
[1731016874850,2.5409,196.56,196.51,12.20188687]
[1731016875348,2.541,196.54,196.51,12.20188687]
[1731016875849,2.541,196.54,196.45,2.82]
[1731016876035,2.541,196.54,196.49,12.20188687]
[1731016876239,2.82,196.59,196.49,12.20188687]
[1731016876648,2.82,196.59,196.49,14.74358687]
[1731016877151,2.82,196.59,196.49,2.5417]
[1731016877347,2.5408,196.56,196.51,12.20188687]
[1731016878446,2.5411,196.54,196.51,12.20188687]
[1731016878843,2.82,196.57,196.51,12.20188687]
[1731016879537,2.82,196.57,196.49,12.20188687]
[1731016880151,2.5409,196.55,196.49,12.20188687]
[1731016881052,2.82,196.57,196.49,12.20188687]
[1731016881247,2.5412,196.53,196.49,12.20188687]
[1731016881550,2.82,196.57,196.52,7.81574083]
[1731016882162,2.82,196.56,196.52,7.81574083]
[1731016882453,5.3609,196.56,196.52,7.81574083]
[1731016882653,2.82,196.56,196.52,7.81574083]
[1731016883152,10.63574083,196.56,196.52,7.81574083]
[1731016883653,2.82,196.55,196.52,7.81574083]
[1731016883843,5.3609,196.55,196.52,7.81574083]
[1731016884645,7.81574083,196.62,196.54,7.81574083]
[1731016884840,7.81574083,196.6,196.44,1.1956]
[1731016885042,7.81574083,196.6,196.53,7.81574083]
[1731016885043,2.5406,196.58,196.53,7.81574083]
[1731016885242,7.81574083,196.59,196.53,7.81574083]
[1731016885649,2.5407,196.57,196.53,7.81574083]
[1731016885848,10.35644083,196.57,196.53,7.81574083]
[1731016886652,7.81574083,196.55,196.44,1.1956]
[1731016886855,10.63574083,196.55,196.5,7.81574083]
[1731016887460,2.5411,196.54,196.5,7.81574083]
[1731016888457,10.63574083,196.55,196.44,1.1956]
[1731016888664,7.81574083,196.53,196.48,7.81574083]
[1731016888848,7.81574083,196.52,196.47,7.81574083]
[1731016889256,2.5414,196.52,196.48,7.81574083]
[1731016890964,2.5414,196.52,196.44,3.7379]
[1731016891267,2.5414,196.52,196.48,7.81574083]
[1731016891650,2.3797,196.54,196.44,1.1956]
[1731016891651,2.5415,196.51,196.44,1.1956]
[1731016891960,10.61574083,196.5,196.44,1.1956]
[1731016892160,10.61574083,196.5,196.43,2.5424]
[1731016892161,10.61574083,196.5,196.45,7.81574083]
[1731016892360,10.61574083,196.5,196.43,7.81574083]
[1731016892361,2.5419,196.48,196.43,7.81574083]
[1731016892566,7.81574083,196.47,196.38,1.226]
[1731016892761,7.81574083,196.47,196.41,7.81574083]
[1731016892957,10.35784083,196.47,196.43,7.81574083]
[1731016895263,10.35784083,196.47,196.39,2.543]
[1731016895465,10.35784083,196.47,196.41,7.81574083]
[1731016896464,7.81574083,196.47,196.41,7.81574083]
[1731016896770,2.5421,196.46,196.41,7.81574083]
[1731016903868,2.5421,196.46,196.39,2.543]
[1731016904069,2.82,196.45,196.39,2.543]
[1731016904269,5.3622,196.45,196.41,7.81574083]
[1731016906470,2.5425,196.43,196.37,2.5431]
[1731016906669,2.5425,196.43,196.4,7.81574083]
[1731016906876,10.63574083,196.45,196.4,7.81574083]
[1731016907177,2.5426,196.43,196.4,7.81574083]
[1731016910281,2.5426,196.43,196.37,2.5432]
[1731016910479,10.63574083,196.45,196.39,7.81574083]
[1731016911478,2.5425,196.43,196.39,7.81574083]
[1731016913190,2.5424,196.44,196.39,7.81574083]
[1731016915291,2.5424,196.44,196.37,2.5432]
[1731016915481,2.5424,196.44,196.4,7.81574083]
[1731016917696,2.5421,196.46,196.39,2.5429]
[1731016917890,5.3621,196.46,196.43,7.81574083]
[1731016919106,5.3621,196.46,196.4,2.5428]
[1731016919290,5.3621,196.46,196.43,7.81574083]
[1731016921598,5.3621,196.46,196.4,2.5428]
[1731016921796,5.3621,196.46,196.42,7.81574083]
[1731016922197,13.17784083,196.46,196.42,7.81574083]
[1731016922399,13.17784083,196.46,196.33,1.1593]
[1731016922400,7.81574083,196.43,196.33,1.1593]
[1731016922596,10.35824083,196.43,196.38,7.81574083]
[1731016923197,10.35824083,196.43,196.33,1.1593]
[1731016923198,2.5424,196.44,196.4,7.81574083]
[1731016924005,10.35794083,196.45,196.4,7.81574083]
[1731016924500,2.5422,196.45,196.42,7.81574083]
[1731016926812,5.3421,196.46,196.42,7.81574083]
[1731016927896,36.64,196.63,196.42,7.81574083]
[1731016928101,36.64,196.63,196.47,7.81574083]
[1731016928102,2.365,196.55,196.47,7.81574083]
[1731016928304,7.81574083,196.53,196.47,7.81574083]
[1731016928513,2.8,196.54,196.49,7.81574083]
[1731016929811,5.3411,196.54,196.49,7.81574083]
[1731016932808,5.3411,196.54,196.46,2.5421]
[1731016933007,5.3411,196.54,196.49,7.81574083]
[1731016933208,2.8,196.54,196.48,7.81574083]
[1731016933409,2.5412,196.53,196.48,7.81574083]
[1731016936208,2.5412,196.53,196.47,2.5419]
[1731016936508,2.5412,196.53,196.5,7.81574083]
[1731016937918,351.616,196.73,196.52,7.81574083]
[1731016938112,351.616,196.73,196.53,7.81574083]
[1731016938113,2.8,196.61,196.53,7.81574083]
[1731016938302,7.81574083,196.59,196.53,7.81574083]
[1731016938501,2.8,196.61,196.43,2.4856]
[1731016938502,5.39849024,196.61,196.57,7.81574083]
[1731016938706,10.61574083,196.62,196.57,7.81574083]
[1731016938907,10.61574083,196.62,196.5,1.1785]
[1731016939143,2.5403,196.6,196.56,7.81574083]
[1731016939423,10.61574083,196.62,196.56,7.81574083]
[1731016939604,2.5402,196.61,196.56,7.81574083]
[1731016939802,10.61574083,196.62,196.56,7.81574083]
[1731016940007,7.81574083,196.65,196.6,7.81574083]
[1731016940304,5.39382246,196.67,196.64,7.81574083]
[1731016940508,7.81574083,196.69,196.64,7.81574083]
[1731016940702,2.8,196.71,196.64,7.81574083]
[1731016940914,1.2417,196.73,196.69,7.81574083]
[1731016941111,2.8,196.76,196.69,7.81574083]
[1731016941321,2.8,196.77,196.62,2.8]
[1731016941614,10.61574083,196.77,196.72,7.81574083]
[1731016941825,2.5381,196.77,196.72,7.81574083]
[1731016942116,2.5381,196.77,196.73,7.81574083]
[1731016942420,2.5381,196.77,196.71,7.81574083]
[1731016942421,7.81574083,196.76,196.71,7.81574083]
[1731016942630,10.35394083,196.76,196.71,7.81574083]
[1731016944117,7.81574083,196.76,196.72,7.81574083]
[1731016944322,2.5383,196.75,196.72,7.81574083]
[1731016945008,2.5383,196.75,196.67,3.7914]
[1731016945224,2.5383,196.75,196.72,7.81574083]
[1731016947321,2.5383,196.75,196.68,2.5392]
[1731016947524,2.5383,196.75,196.72,7.81574083]
[1731016949521,2.5383,196.75,196.68,2.5392]
[1731016949820,2.8,196.79,196.73,7.81574083]
[1731016950016,10.61574083,196.79,196.73,7.81574083]
[1731016950727,2.5381,196.77,196.73,7.81574083]
[1731016950919,2.5381,196.77,196.74,7.81574083]
[1731016953019,7.81574083,196.79,196.74,7.81574083]
[1731016953220,7.81574083,196.79,196.71,2.5388]
[1731016953221,10.35364083,196.79,196.71,2.5388]
[1731016953418,10.35364083,196.79,196.75,7.81574083]
[1731016953624,7.81574083,196.79,196.75,7.81574083]
[1731016953927,2.5381,196.78,196.7,2.5389]
[1731016954119,2.5381,196.78,196.74,7.81574083]
[1731016954320,1.2721,196.8,196.74,7.81574083]
[1731016954520,9.08784083,196.8,196.74,7.81574083]
[1731016954919,2.5378,196.79,196.74,7.81574083]
[1731016956335,2.5378,196.79,196.72,2.5387]
[1731016956541,2.5378,196.79,196.74,7.81574083]
[1731016957135,2.5378,196.79,196.72,2.5387]
[1731016957335,2.5378,196.79,196.74,7.81574083]
[1731016959828,2.5378,196.79,196.72,2.5387]
[1731016960029,2.5378,196.79,196.75,7.81574083]
[1731016962935,2.5378,196.79,196.72,2.5387]
[1731016963237,2.5378,196.79,196.75,7.81574083]
[1731016965938,2.5379,196.78,196.72,2.5387]
[1731016966241,2.5379,196.78,196.75,7.81574083]
[1731016967040,2.5381,196.77,196.71,2.5388]
[1731016967241,2.5381,196.77,196.74,7.81574083]
[1731016968335,2.5381,196.77,196.71,2.5388]
[1731016968529,2.5381,196.77,196.75,7.81574083]
[1731016969035,2.5378,196.8,196.76,7.81574083]
[1731016969337,2.8,196.82,196.76,7.81574083]
[1731016969338,7.81574083,196.82,196.76,7.81574083]
[1731016969537,1.2417,196.83,196.76,7.81574083]
[1731016969744,7.81574083,196.83,196.78,7.81574083]
[1731016969930,7.81574083,196.83,196.7,2.8]
[1731016970133,2.5376,196.81,196.74,2.5383]
[1731016970337,2.5376,196.81,196.79,7.81574083]
[1731016970935,2.5375,196.82,196.79,7.81574083]
[1731016971137,2.5375,196.82,196.7,2.8]
[1731016971138,10.61574083,196.84,196.7,2.8]
[1731016971345,10.61574083,196.84,196.79,7.81574083]
[1731016971843,2.5374,196.82,196.75,2.5382]
[1731016972043,2.5374,196.82,196.79,7.81574083]
[1731016972244,49.24524907,196.86,196.81,7.81574083]
[1731016972446,57.0609899,196.86,196.81,7.81574083]
[1731016972746,49.24524907,196.86,196.81,7.81574083]
[1731016972940,2.5373,196.84,196.81,7.81574083]
[1731016973249,2.5373,196.84,196.77,2.5381]
[1731016973542,2.5373,196.84,196.82,7.81574083]
[1731016973933,2.5373,196.84,196.77,2.5381]
[1731016974335,2.5373,196.84,196.81,7.81574083]
[1731016974841,2.5373,196.84,196.77,2.5381]
[1731016975043,2.5373,196.84,196.82,7.81574083]
[1731016975244,2.5373,196.84,196.77,2.5381]
[1731016975443,2.5373,196.84,196.82,7.81574083]
[1731016975948,2.5373,196.84,196.77,2.5381]
[1731016976245,2.5373,196.84,196.83,7.81574083]
[1731016976550,2.5373,196.84,196.82,7.81574083]
[1731016976846,2.5373,196.84,196.81,7.81574083]
[1731016977642,2.5373,196.84,196.77,2.5381]
[1731016977842,2.5373,196.84,196.82,7.81574083]
[1731016979752,2.5373,196.84,196.77,2.5381]
[1731016979954,2.5373,196.84,196.82,7.81574083]
[1731016981059,2.537,196.86,196.83,7.81574083]
[1731016982043,2.537,196.86,196.79,2.5377]
[1731016982350,2.537,196.86,196.83,7.81574083]
[1731016983147,3.7113,196.95,196.85,7.81574083]
[1731016983349,3.7113,196.95,196.88,7.81574083]
[1731016983554,7.81574083,196.93,196.8,2.78]
[1731016983854,2.5363,196.91,196.88,7.81574083]
[1731016986167,2.5363,196.91,196.83,2.5372]
[1731016986367,2.5363,196.91,196.87,7.81574083]
[1731016988068,2.5363,196.91,196.88,7.81574083]
[1731016988457,2.536,196.93,196.89,7.81574083]
[1731016988660,2.536,196.93,196.85,2.537]
[1731016988859,2.536,196.93,196.89,7.81574083]
[1731016991665,7.81574083,196.94,196.89,7.81574083]
[1731016991971,2.4671,196.95,196.91,7.81574083]
[1731016992164,5.27699492,196.99,196.91,7.81574083]
[1731016992471,8.05699492,196.99,196.91,7.81574083]
[1731016992772,8.05699492,196.99,196.86,2.5349429]
[1731016992773,13.09273575,196.99,196.94,7.81574083]
[1731016992970,7.81574083,196.99,196.94,7.81574083]
[1731016993265,54.27929953,197.0,196.9,2.5610868]
[1731016993466,54.27929953,197.0,196.86,1.2677]
[1731016993467,7.81574083,196.99,196.95,7.81574083]
[1731016993865,2.5355,196.98,196.95,7.81574083]
[1731016994266,7.81574083,196.99,196.95,7.81574083]
[1731016994461,10.35104083,196.99,196.95,7.81574083]
[1731016995465,7.81574083,196.99,196.86,1.2677]
[1731016995668,7.81574083,196.99,196.93,7.81574083]
[1731016996083,2.5357,196.96,196.93,7.81574083]
[1731016997166,7.81574083,196.97,196.85,3.9582]
[1731016997167,7.81574083,196.93,196.85,1.1782]
[1731016997475,7.81574083,196.93,196.87,7.81574083]
[1731016998272,2.5363,196.91,196.87,7.81574083]
[1731016999170,2.5363,196.91,196.84,2.5372]
[1731016999479,2.5364,196.9,196.88,7.81574083]
[1731017000974,2.5365,196.89,196.86,7.81574083]
[1731017001171,7.81574083,196.9,196.8,2.4225]
[1731017001373,7.81574083,196.9,196.84,7.81574083]
[1731017002071,7.81574083,196.87,196.8,1.2164]
[1731017002377,7.81574083,196.87,196.79,45.06767177]
[1731017002378,2.5374,196.83,196.81,7.81574083]
[1731017002575,2.78,196.85,196.62,48.18005139]
[1731017002875,7.81574083,196.82,196.77,7.81574083]
[1731017003181,10.59574083,196.82,196.77,7.81574083]
[1731017003683,2.78,196.85,196.81,7.81574083]
[1731017004174,2.5372,196.84,196.81,7.81574083]
[1731017004475,2.78,196.86,196.81,7.81574083]
[1731017004782,7.81574083,196.85,196.8,7.81574083]
[1731017004985,2.78,196.86,196.8,7.81574083]
[1731017005371,2.5371,196.85,196.8,7.81574083]
[1731017005679,2.78,196.86,196.8,7.81574083]
[1731017006780,2.5372,196.84,196.8,7.81574083]
[1731017007270,7.81574083,196.83,196.72,2.5387]
[1731017007473,7.81574083,196.82,196.71,3.9869]
[1731017007678,2.78,196.81,196.75,7.81574083]
[1731017007867,2.5381,196.77,196.74,7.81574083]
[1731017008186,7.81574083,196.78,196.74,7.81574083]
[1731017008368,7.81574083,196.78,196.63,2.4617]
[1731017008570,7.81574083,196.78,196.71,7.81574083]
[1731017009882,2.5386,196.73,196.71,7.81574083]
[1731017010483,2.5386,196.73,196.66,2.5395]
[1731017010484,2.5386,196.73,196.7,7.81574083]
[1731017011076,7.81574083,196.74,196.68,7.81574083]
[1731017011281,7.81574083,196.74,196.64,2.5396]
[1731017011282,10.59574083,196.74,196.64,2.5396]
[1731017011476,2.539,196.7,196.68,7.81574083]
[1731017011675,10.59574083,196.74,196.63,5.0015]
[1731017011879,10.59574083,196.74,196.68,7.81574083]
[1731017012084,2.539,196.71,196.68,7.81574083]
[1731017012878,10.59574083,196.74,196.68,7.81574083]
[1731017013085,10.59574083,196.74,196.63,1.25]
[1731017013086,2.539,196.7,196.66,7.81574083]
[1731017017782,2.539,196.7,196.63,3.7898]
[1731017017986,2.539,196.7,196.67,7.81574083]
[1731017018598,7.81574083,196.67,196.56,4.0175]
[1731017018786,7.81574083,196.65,196.59,7.81574083]
[1731017018981,10.59574083,196.65,196.59,7.81574083]
[1731017019290,2.5399,196.63,196.59,7.81574083]
[1731017020187,2.5396,196.66,196.61,7.81574083]
[1731017020387,2.78,196.67,196.55,1.2672]
[1731017020587,7.81574083,196.66,196.55,1.2672]
[1731017020786,2.5399,196.64,196.6,7.81574083]
[1731017021594,2.5399,196.64,196.55,1.2672]
[1731017021888,2.5399,196.64,196.59,7.81574083]
[1731017021889,2.5399,196.63,196.59,7.81574083]
[1731017022096,2.5399,196.63,196.55,1.2672]
[1731017022284,2.5399,196.63,196.58,7.81574083]
[1731017022793,2.54,196.62,196.58,7.81574083]
[1731017023282,2.54,196.62,196.6,7.81574083]
[1731017024294,7.81574083,196.64,196.6,7.81574083]
[1731017024295,2.5399,196.63,196.6,7.81574083]
[1731017025585,2.78,196.62,196.43,5.30939697]
[1731017025791,2.5407,196.57,196.53,7.81574083]
[1731017026497,2.5406,196.58,196.55,7.81574083]
[1731017026892,7.81574083,196.6,196.55,7.81574083]
[1731017027291,2.78,196.63,196.59,7.81574083]
[1731017027690,5.3199,196.63,196.59,7.81574083]
[1731017027903,2.78,196.67,196.54,2.78]
[1731017028097,2.78,196.67,196.61,7.81574083]
[1731017028988,2.5397,196.65,196.61,7.81574083]
[1731017029403,2.5397,196.65,196.57,14.74105444]
[1731017029702,2.5397,196.65,196.57,12.20055444]
[1731017029892,2.5397,196.65,196.58,2.5405]
[1731017030098,12.20055444,196.68,196.58,2.5405]
[1731017030303,2.78,196.67,196.58,2.5405]
[1731017031296,2.5395,196.66,196.59,2.5403]
[1731017032703,2.5395,196.66,196.59,14.74085444]
[1731017033099,2.5396,196.65,196.59,14.74085444]
[1731017033294,2.78,196.67,196.6,2.5402]
[1731017033503,2.78,196.67,196.59,12.20055444]
[1731017033706,2.5395,196.66,196.59,12.20055444]
[1731017034301,2.5395,196.66,196.61,2.5401]
[1731017036299,2.5396,196.65,196.61,2.5401]
[1731017036606,2.5396,196.65,196.6,2.5402]
[1731017037297,2.5395,196.66,196.61,2.5401]
[1731017040200,2.5395,196.66,196.62,12.20055444]
[1731017040906,2.5395,196.66,196.61,2.5401]
[1731017043201,12.20055444,196.74,196.63,12.20055444]
[1731017043410,2.78,196.73,196.63,14.77836908]
[1731017043799,2.78,196.73,196.64,2.5397]
[1731017043800,2.5391,196.7,196.64,2.5397]
[1731017044007,2.78,196.73,196.61,13.45805444]
[1731017044405,2.5394,196.67,196.61,15.99805444]
[1731017044601,2.5394,196.67,196.61,13.45805444]
[1731017045000,2.78,196.73,196.61,13.45805444]
[1731017045001,2.78,196.73,196.62,2.56663217]
[1731017045204,2.5392,196.69,196.62,2.56663217]
[1731017045809,2.78,196.73,196.62,2.56663217]
[1731017046007,2.5392,196.68,196.64,2.5397]
[1731017046710,2.78,196.72,196.64,12.20055444]
[1731017047813,2.5389,196.71,196.66,2.5395]
[1731017048313,2.5389,196.71,196.62,2.56663217]
[1731017048314,2.78,196.72,196.63,2.5398]
[1731017049012,2.5393,196.68,196.61,5.11853357]
[1731017049600,2.5394,196.67,196.6,12.20055444]
[1731017049916,2.5394,196.67,196.62,2.54]
[1731017050422,2.5394,196.67,196.61,12.20055444]
[1731017050604,2.5394,196.67,196.6,2.59342447]
[1731017050916,2.5394,196.67,196.6,14.79397891]
[1731017051218,2.5394,196.67,196.61,2.54]
[1731017051515,2.5394,196.67,196.63,7.80597404]
[1731017051716,2.5397,196.64,196.59,2.5403]
[1731017051911,2.5397,196.64,196.61,7.80597404]
[1731017052110,2.5397,196.64,196.55,2.78]
[1731017052418,2.5397,196.64,196.6,7.80597404]
[1731017052824,7.80597404,196.66,196.6,7.80597404]
[1731017053118,2.5399,196.63,196.58,2.5405]
[1731017053311,7.80597404,196.66,196.56,2.5407]
[1731017053512,2.54,196.62,196.56,2.5407]
[1731017053714,2.54,196.62,196.6,7.80597404]
[1731017054119,2.54,196.62,196.56,2.5407]
[1731017054321,7.80597404,196.64,196.58,7.80597404]
[1731017054514,7.80597404,196.61,196.53,45.12470005]
[1731017054716,7.80597404,196.61,196.56,7.80597404]
[1731017055218,2.5405,196.59,196.56,7.80597404]
[1731017057015,2.5405,196.59,196.53,45.12470005]
[1731017057218,2.5405,196.59,196.57,7.80597404]
[1731017059227,2.5405,196.59,196.55,7.80597404]
[1731017059422,7.80597404,196.61,196.46,48.82421554]
[1731017059629,2.5407,196.57,196.54,7.80597404]
[1731017059824,2.78,196.57,196.53,7.80597404]
[1731017060027,2.5409,196.56,196.53,7.80597404]
[1731017060228,2.78,196.57,196.53,7.80597404]
[1731017060524,2.78,196.57,196.46,51.36621554]
[1731017060525,2.5412,196.53,196.46,51.36621554]
[1731017060727,2.5412,196.53,196.49,7.80597404]
[1731017060923,2.5412,196.53,196.46,50.12711554]
[1731017060924,7.80597404,196.55,196.46,47.58511554]
[1731017061229,2.5413,196.52,196.49,7.80597404]
[1731017062025,2.5413,196.52,196.44,2.5423]
[1731017062230,2.5417,196.5,196.42,2.5426]
[1731017062524,7.80597404,196.51,196.39,2.55765605]
[1731017062825,7.80597404,196.51,196.45,7.80597404]
[1731017063724,7.80597404,196.51,196.38,2.453]
[1731017063925,7.80597404,196.51,196.44,7.80597404]
[1731017064119,7.80597404,196.49,196.44,7.80597404]
[1731017064729,2.542,196.47,196.44,7.80597404]
[1731017066719,2.5418,196.49,196.44,7.80597404]
[1731017066924,2.3875,196.55,196.46,7.80597404]
[1731017066925,7.80597404,196.52,196.46,7.80597404]
[1731017067127,2.78,196.5,196.47,7.80597404]
[1731017068232,2.78,196.52,196.49,7.80597404]
[1731017068426,7.80597404,196.54,196.49,7.80597404]
[1731017068730,5.3213,196.53,196.49,7.80597404]
[1731017070627,5.3213,196.53,196.45,2.5421]
[1731017070931,2.5413,196.52,196.49,7.80597404]
[1731017072533,2.5413,196.52,196.4,2.78]
[1731017072534,10.34727404,196.52,196.47,7.80597404]
[1731017074040,7.80597404,196.52,196.47,7.80597404]
[1731017074734,5.3212,196.53,196.48,7.80597404]
[1731017074735,13.12717404,196.53,196.48,7.80597404]
[1731017074934,2.5413,196.52,196.48,7.80597404]
[1731017075139,2.5413,196.52,196.46,2.542]
[1731017075540,2.5413,196.52,196.48,7.80597404]
[1731017075840,2.5413,196.52,196.46,2.542]
[1731017076129,2.5413,196.52,196.48,7.80597404]
[1731017076436,2.5413,196.52,196.49,7.80597404]
[1731017076834,5.3211,196.54,196.49,7.80597404]
[1731017077027,2.5411,196.54,196.49,7.80597404]
[1731017078931,2.5411,196.54,196.51,7.80597404]
[1731017081735,5.3208,196.56,196.51,7.80597404]
[1731017082141,2.5408,196.56,196.53,7.80597404]
[1731017082537,7.80597404,196.59,196.55,7.80597404]
[1731017082736,10.58597404,196.59,196.55,7.80597404]
[1731017083435,2.5406,196.58,196.55,7.80597404]
[1731017084237,2.78,196.6,196.56,7.80597404]
[1731017085845,5.3203,196.6,196.56,7.80597404]
[1731017086941,2.78,196.6,196.56,7.80597404]
[1731017087129,7.80597404,196.62,196.58,7.80597404]
[1731017087130,5.32,196.62,196.58,7.80597404]
[1731017087732,2.5398,196.64,196.6,7.80597404]
[1731017088337,2.78,196.65,196.6,7.80597404]
[1731017088531,2.78,196.65,196.57,2.50869011]
[1731017088532,7.80597404,196.66,196.61,7.80597404]
[1731017088941,51.58013077,196.71,196.61,7.80597404]
[1731017089147,10.34537404,196.67,196.61,7.80597404]
[1731017089846,2.5394,196.67,196.64,7.80597404]
[1731017090046,7.80597404,196.69,196.64,7.80597404]
[1731017090047,10.34507404,196.69,196.64,7.80597404]
[1731017090249,2.78,196.71,196.67,7.80597404]
[1731017090438,10.28327404,196.72,196.67,7.80597404]
[1731017090439,10.34467404,196.72,196.67,7.80597404]
[1731017094039,10.34507404,196.69,196.61,2.54]
[1731017094248,10.34507404,196.69,196.64,7.80597404]
[1731017094450,7.80597404,196.69,196.64,7.80597404]
[1731017095048,2.5394,196.67,196.64,7.80597404]
[1731017095352,2.5394,196.67,196.6,2.5402]
[1731017095552,2.5394,196.67,196.64,7.80597404]
[1731017096056,7.80597404,196.71,196.66,7.80597404]
[1731017096444,2.5392,196.69,196.66,7.80597404]
[1731017096656,2.78,196.73,196.68,7.80597404]
[1731017096952,10.58597404,196.73,196.68,7.80597404]
[1731017097146,2.78,196.73,196.63,2.3777]
[1731017097347,2.539,196.71,196.64,2.5396]
[1731017098452,2.539,196.7,196.64,2.5396]
[1731017098952,2.539,196.7,196.63,2.3777]
[1731017099146,2.539,196.71,196.65,2.5396]
[1731017099551,2.78,196.73,196.65,2.5396]
[1731017099952,2.539,196.7,196.64,2.5397]
[1731017100347,2.78,196.73,196.63,2.3777]
[1731017100555,2.78,196.73,196.6,45.11224289]
[1731017100747,1.1745,196.72,196.6,45.11224289]
[1731017100941,2.5399,196.63,196.6,45.11224289]
[1731017101751,2.5399,196.63,196.57,2.5406]
[1731017103251,2.54,196.62,196.57,2.5406]
[1731017103854,2.54,196.62,196.58,2.5405]
[1731017105760,2.78,196.68,196.52,5.2319]
[1731017105957,2.5106,196.67,196.52,5.2319]